fUSD/lending_fUSD_20241223
["ID","MTS","AMOUNT","RATE_DAILY","PERIOD"]
[346424639,1734955862397,-2635.3,0.00019452,2]
[346424640,1734955862406,-780.83,0.00019452,2]
[346424641,1734955862416,-500.0,0.00019452,2]
[346424642,1734955862425,-651.81,0.00019452,2]
[346424643,1734955862434,-500.0,0.00019452,2]
[346424644,1734955862443,-500.0,0.00019452,2]
[346424645,1734955862454,-1128.21,0.00019452,2]
[346424646,1734955862463,-1930.03,0.00019452,2]
[346424647,1734955862472,-4692.12,0.00019452,2]
[346424648,1734955862481,-500.0,0.00019452,2]
[346424649,1734955862491,-1139.1,0.00019452,2]
[346424650,1734955862501,-448.79667167,0.00019452,2]
[346424651,1734955862520,-1309.61,0.00019452,2]
[346424652,1734955862531,-500.0,0.00019452,2]
[346424653,1734955862542,-4091.17,0.00019452,2]
[346424654,1734955862551,-1204.57,0.00019452,2]
[346424655,1734955862561,-500.0,0.00019452,2]
[346424656,1734955862570,-500.0,0.00019452,2]
[346424657,1734955862579,-500.0,0.00019452,2]
[346424658,1734955862589,-500.0,0.00019452,2]
[346424659,1734955862598,-530.46,0.00019452,2]
[346424660,1734955862608,-500.0,0.00019452,2]
[346424661,1734955862618,-500.0,0.00019452,2]
[346424662,1734955862627,-500.0,0.00019452,2]
[346424663,1734955862636,-4647.18,0.00019452,2]
[346424664,1734955862645,-500.0,0.00019452,2]
[346424665,1734955862655,-500.0,0.00019452,2]
[346424666,1734955862664,-5873.71,0.00019452,2]
[346424667,1734955862673,-1226.61,0.00019452,2]
[346424668,1734955862683,-3039.26,0.00019452,2]
[346424669,1734955862693,-201.61,0.00019452,2]
[346424670,1734955862705,-150.0,0.00019471,2]
[346424671,1734955862714,-152.0,0.00019479,4]
[346424672,1734955862725,-934.56421846,0.00019479,2]
[346424673,1734955862734,-150.22,0.00019498,2]
[346424674,1734955862743,-1000.0,0.000195,2]
[346424675,1734955862752,-1000.000001,0.000195,2]
[346424676,1734955862762,-337.0227501,0.000195,2]
[346424677,1734955862771,-365.0,0.000195,2]
[346424678,1734955862781,-1000.0,0.000195,2]
[346424679,1734955862791,-230.0,0.000195,2]
[346424680,1734955862801,-155.82571011,0.00019507,2]
[346424681,1734955862810,-1265.0,0.00019523,2]
[346424682,1734955862820,-2011.0,0.00019523,2]
[346424683,1734955862829,-565.0,0.00019523,2]
[346424684,1734955862838,-633.0,0.00019523,2]
[346424685,1734955862848,-150.0,0.00019523,2]
[346424686,1734955862857,-1899.0,0.00019523,2]
[346424687,1734955862866,-3770.0,0.00019523,2]
[346424688,1734955862875,-924.0,0.00019523,2]
[346424689,1734955862884,-818.0,0.00019523,2]
[346424690,1734955862894,-1256.0,0.00019523,2]
[346424691,1734955862904,-536.0,0.00019523,2]
[346424692,1734955862914,-3682.0,0.00019523,2]
[346424693,1734955862923,-3000.0,0.0001953,2]
[346424694,1734955862932,-934.56421846,0.00019559,2]
[346424695,1734955862942,-150.95925267,0.00019559,2]
[346424696,1734955862956,-500.0,0.00019567,2]
[346424697,1734955862966,-500.0,0.00019568,2]
[346424698,1734955862975,-2000.0,0.00019568,2]
[346424699,1734955862985,-500.0,0.00019568,2]
[346424700,1734955862994,-500.0,0.00019568,2]
[346424701,1734955863004,-200.0,0.00019568,2]
[346424702,1734955863014,-155.82571011,0.00019589,2]
[346424703,1734955863023,-425.01395619,0.00019597,2]
[346424704,1734955863033,-1000.0,0.000196,2]
[346424705,1734955863043,-187.34822068,0.00019626,2]
[346424706,1734955863052,-184.01,0.00019631,2]
[346424707,1734955863063,-934.56421846,0.0001964,2]
[346424708,1734955863073,-164.0,0.00019644,2]
[346424709,1734955863082,-164.0,0.00019644,2]
[346424710,1734955863092,-283.93,0.00019644,2]
[346424711,1734955863103,-209.13,0.00019669,2]
[346424712,1734955863113,-155.82571011,0.00019699,2]
[346424713,1734955863123,-857.496033,0.000197,2]
[346424714,1734955863133,-1000.0,0.000197,2]
[346424715,1734955863143,-2000.0,0.000197,2]
[346424716,1734955863154,-1500.0,0.00019709,2]
[346424717,1734955863164,-2000.0,0.0001971,2]
[346424718,1734955863174,-150.0,0.00019714,2]
[346424719,1734955863185,-150.0,0.00019716,2]
[346424720,1734955863195,-150.0,0.00019717,2]
[346424721,1734955863211,-934.56421846,0.0001972,2]
[346424722,1734955863222,-3676.623878,0.0001972,2]
[346424723,1734955863233,-150.0,0.00019722,2]
[346424724,1734955863244,-150.0,0.00019723,2]
[346424725,1734955863255,-789.26,0.00019724,2]
[346424726,1734955863266,-3534.44,0.00019724,2]
[346424727,1734955863276,-9392.0096897,0.00019725,2]
[346424728,1734955863287,-1670.3025341,0.00019725,2]
[346424729,1734955863297,-36423.35,0.00019725,2]
[346424730,1734955863307,-1487.56,0.00019725,2]
[346424731,1734955863318,-3666.05,0.00019725,2]
[346424732,1734955863328,-4555.67,0.00019725,2]
[346424733,1734955863339,-3675.03,0.00019725,2]
[346424734,1734955863349,-7948.92,0.00019725,2]
[346424735,1734955863358,-779.62,0.00019725,2]
[346424736,1734955863368,-1594.44,0.00019725,2]
[346424737,1734955863379,-3672.66,0.00019725,2]
[346424738,1734955863389,-4685.17,0.00019725,2]
[346424739,1734955863400,-3130.45,0.00019725,2]
[346424740,1734955863410,-8487.84,0.00019725,2]
[346424741,1734955863420,-5031.33,0.00019725,2]
[346424742,1734955863431,-151.0,0.00019726,2]
[346424743,1734955863440,-199.364336,0.00019726,2]
[346424744,1734955863450,-199.364336,0.00019726,2]
[346424745,1734955863465,-151.0,0.00019726,2]
[346424746,1734955863475,-200.0,0.00019726,2]
[346424747,1734955863485,-538.93,0.00019726,2]
[346424748,1734955863495,-500.0,0.00019726,2]
[346424749,1734955863505,-505.56,0.00019726,2]
[346424750,1734955863517,-500.0,0.00019726,2]
[346424751,1734955863527,-332.16448212,0.00019726,2]
[346424752,1734955863536,-541.2052892,0.00019726,2]
[346424753,1734955863547,-500.0,0.00019726,2]
[346424754,1734955863556,-500.0,0.00019726,2]
[346424755,1734955863566,-500.0,0.00019726,2]
[346424756,1734955863577,-500.0,0.00019726,2]
[346424757,1734955863587,-500.0,0.00019726,2]
[346424758,1734955863598,-500.0,0.00019726,2]
[346424759,1734955863609,-500.0,0.00019726,2]
[346424760,1734955863619,-500.0,0.00019726,2]
[346424761,1734955863629,-500.0,0.00019726,2]
[346424762,1734955863639,-500.0,0.00019726,2]
[346424763,1734955863648,-500.0,0.00019726,2]
[346424764,1734955863658,-500.0,0.00019726,2]
[346424765,1734955863668,-500.0,0.00019726,2]
[346424766,1734955863678,-500.0,0.00019726,2]
[346424767,1734955863688,-500.0,0.00019726,2]
[346424768,1734955863699,-1169.04,0.00019726,2]
[346424769,1734955863712,-500.0,0.00019726,2]
[346424770,1734955863722,-500.0,0.00019726,2]
[346424771,1734955863732,-500.0,0.00019726,2]
[346424772,1734955863741,-362.07345969,0.00019726,2]
[346424773,1734955863752,-500.0,0.00019726,2]
[346424774,1734955863762,-873.33,0.00019726,2]
[346424775,1734955863772,-956.73,0.00019726,2]
[346424776,1734955863782,-500.0,0.00019726,2]
[346424777,1734955863791,-835.92,0.00019726,2]
[346424778,1734955863801,-500.0,0.00019726,2]
[346424779,1734955863811,-653.14,0.00019726,2]
[346424780,1734955863821,-854.47,0.00019726,2]
[346424781,1734955863831,-500.0,0.00019726,2]
[346424782,1734955863842,-591.17,0.00019726,2]
[346424783,1734955863852,-776.47,0.00019726,2]
[346424784,1734955863861,-397.68148325,0.00019726,2]
[346424785,1734955863871,-500.0,0.00019726,2]
[346424786,1734955863881,-500.0,0.00019726,2]
[346424787,1734955863891,-500.0,0.00019726,2]
[346424788,1734955863901,-500.0,0.00019726,2]
[346424789,1734955863910,-500.0,0.00019726,2]
[346424790,1734955863921,-500.0,0.00019726,2]
[346424791,1734955863931,-500.0,0.00019726,2]
[346424792,1734955863940,-966.14,0.00019726,2]
[346424793,1734955863950,-500.0,0.00019726,2]
[346424794,1734955863963,-500.0,0.00019726,2]
[346424795,1734955863973,-500.0,0.00019726,2]
[346424796,1734955863985,-500.0,0.00019726,2]
[346424797,1734955863995,-500.0,0.00019726,2]
[346424798,1734955864005,-500.0,0.00019726,2]
[346424799,1734955864015,-500.0,0.00019726,2]
[346424800,1734955864025,-500.0,0.00019726,2]
[346424801,1734955864035,-532.14,0.00019726,2]
[346424802,1734955864044,-500.0,0.00019726,2]
[346424803,1734955864054,-500.0,0.00019726,2]
[346424804,1734955864063,-500.0,0.00019726,2]
[346424805,1734955864073,-500.0,0.00019726,2]
[346424806,1734955864083,-500.0,0.00019726,2]
[346424807,1734955864092,-500.0,0.00019726,2]
[346424808,1734955864101,-500.0,0.00019726,2]
[346424809,1734955864111,-500.0,0.00019726,2]
[346424810,1734955864120,-500.0,0.00019726,2]
[346424811,1734955864129,-500.0,0.00019726,2]
[346424812,1734955864138,-500.0,0.00019726,2]
[346424813,1734955864148,-500.0,0.00019726,2]
[346424814,1734955864158,-500.0,0.00019726,2]
[346424815,1734955864168,-500.0,0.00019726,2]
[346424816,1734955864177,-500.0,0.00019726,2]
[346424817,1734955864186,-500.0,0.00019726,2]
[346424818,1734955864196,-500.0,0.00019726,2]
[346424819,1734955864207,-500.0,0.00019726,2]
[346424820,1734955864217,-500.0,0.00019726,2]
[346424821,1734955864228,-500.0,0.00019726,2]
[346424822,1734955864238,-1580.15,0.00019726,2]
[346424823,1734955864248,-621.54,0.00019726,2]
[346424824,1734955864259,-500.0,0.00019726,2]
[346424825,1734955864269,-614.05,0.00019726,2]
[346424826,1734955864279,-500.0,0.00019726,2]
[346424827,1734955864290,-155.988333,0.00019726,2]
[346424828,1734955864300,-3851.727373,0.00019726,2]
[346424829,1734955864310,-671.28,0.00019726,2]
[346424830,1734955864320,-1448.4,0.00019726,2]
[346424831,1734955864331,-153.753901,0.00019726,2]
[346424832,1734955864341,-1451.54,0.00019726,2]
[346424833,1734955864351,-4179.890238,0.00019726,2]
[346424834,1734955864361,-500.0,0.00019726,2]
[346424835,1734955864370,-1385.85,0.00019726,2]
[346424836,1734955864380,-500.0,0.00019726,2]
[346424837,1734955864390,-200.0,0.00019726,2]
[346424838,1734955864401,-500.0,0.00019726,2]
[346424839,1734955864411,-515.9,0.00019726,2]
[346424840,1734955864422,-500.0,0.00019726,2]
[346424841,1734955864433,-500.0,0.00019726,2]
[346424842,1734955864443,-500.0,0.00019726,2]
[346424843,1734955864453,-706.92,0.00019726,2]
[346424844,1734955864471,-1924.85,0.00019726,2]
[346424845,1734955864482,-500.0,0.00019726,2]
[346424846,1734955864493,-500.0,0.00019726,2]
[346424847,1734955864504,-641.33,0.00019726,2]
[346424848,1734955864518,-711.88,0.00019726,2]
[346424849,1734955864528,-500.0,0.00019726,2]
[346424850,1734955864539,-500.0,0.00019726,2]
[346424851,1734955864549,-500.0,0.00019726,2]
[346424852,1734955864560,-772.53,0.00019726,2]
[346424853,1734955864571,-500.0,0.00019726,2]
[346424854,1734955864581,-712.99,0.00019726,2]
[346424855,1734955864591,-3481.14,0.00019726,2]
[346424856,1734955864602,-660.16,0.00019726,2]
[346424857,1734955864612,-500.0,0.00019726,2]
[346424858,1734955864624,-1848.3,0.00019726,2]
[346424859,1734955864638,-500.0,0.00019726,2]
[346424860,1734955864651,-500.0,0.00019726,2]
[346424861,1734955864661,-735.19,0.00019726,2]
[346424862,1734955864671,-876.41,0.00019726,2]
[346424863,1734955864681,-500.0,0.00019726,2]
[346424864,1734955864691,-500.0,0.00019726,2]
[346424865,1734955864701,-500.0,0.00019726,2]
[346424866,1734955864714,-355.99203796,0.00019726,2]
[346424867,1734955864724,-665.76,0.00019726,2]
[346424868,1734955864734,-500.0,0.00019726,2]
[346424869,1734955864744,-671.08,0.00019726,2]
[346424870,1734955864754,-743.0,0.00019726,2]
[346424871,1734955864763,-500.0,0.00019726,2]
[346424872,1734955864773,-500.0,0.00019726,2]
[346424873,1734955864782,-500.0,0.00019726,2]
[346424874,1734955864792,-678.05,0.00019726,2]
[346424875,1734955864802,-500.0,0.00019726,2]
[346424876,1734955864812,-1259.63,0.00019726,2]
[346424877,1734955864821,-500.0,0.00019726,2]
[346424878,1734955864832,-613.77,0.00019726,2]
[346424879,1734955864841,-500.0,0.00019726,2]
[346424880,1734955864852,-500.0,0.00019726,2]
[346424881,1734955864861,-2124.91,0.00019726,2]
[346424882,1734955864871,-827.43,0.00019726,2]
[346424883,1734955864880,-500.0,0.00019726,2]
[346424884,1734955864890,-500.0,0.00019726,2]
[346424885,1734955864899,-500.0,0.00019726,2]
[346424886,1734955864910,-500.0,0.00019726,2]
[346424887,1734955864919,-500.0,0.00019726,2]
[346424888,1734955864929,-736.46,0.00019726,2]
[346424889,1734955864938,-1894.06,0.00019726,2]
[346424890,1734955864947,-500.0,0.00019726,2]
[346424891,1734955864957,-500.0,0.00019726,2]
[346424892,1734955864967,-500.0,0.00019726,2]
[346424893,1734955865088,-500.0,0.00019726,2]
[346424894,1734955865107,-500.0,0.00019726,2]
[346424895,1734955865118,-1083.2,0.00019726,2]
[346424896,1734955865129,-500.0,0.00019726,2]
[346424897,1734955865140,-2542.94,0.00019726,2]
[346424898,1734955865150,-500.0,0.00019726,2]
[346424899,1734955865159,-500.0,0.00019726,2]
[346424900,1734955865168,-607.39920359,0.00019726,2]
[346424901,1734955865178,-927.93,0.00019726,2]
[346424902,1734955865187,-555.41,0.00019726,2]
[346424903,1734955865197,-1088.6,0.00019726,2]
[346424904,1734955865207,-500.0,0.00019726,2]
[346424905,1734955865216,-981.64,0.00019726,2]
[346424906,1734955865226,-598.28,0.00019726,2]
[346424907,1734955865236,-500.0,0.00019726,2]
[346424908,1734955865245,-500.0,0.00019726,2]
[346424909,1734955865255,-500.0,0.00019726,2]
[346424910,1734955865265,-566.64,0.00019726,2]
[346424911,1734955865275,-617.25,0.00019726,2]
[346424912,1734955865285,-659.44,0.00019726,2]
[346424913,1734955865295,-500.0,0.00019726,2]
[346424914,1734955865304,-500.0,0.00019726,2]
[346424915,1734955865314,-500.0,0.00019726,2]
[346424916,1734955865323,-500.0,0.00019726,2]
[346424917,1734955865334,-500.0,0.00019726,2]
[346424918,1734955865343,-500.0,0.00019726,2]
[346424919,1734955865353,-2678.11,0.00019726,2]
[346424920,1734955865363,-500.0,0.00019726,2]
[346424921,1734955865372,-1279.88,0.00019726,2]
[346424922,1734955865382,-500.0,0.00019726,2]
[346424923,1734955865391,-500.0,0.00019726,2]
[346424924,1734955865402,-1452.53,0.00019726,2]
[346424925,1734955865411,-753.5,0.00019726,2]
[346424926,1734955865421,-500.0,0.00019726,2]
[346424927,1734955865430,-374.85504036,0.00019726,2]
[346424928,1734955865440,-500.0,0.00019726,2]
[346424929,1734955865450,-589.87,0.00019726,2]
[346424930,1734955865461,-500.0,0.00019726,2]
[346424931,1734955865470,-1563.6,0.00019726,2]
[346424932,1734955865480,-500.0,0.00019726,2]
[346424933,1734955865489,-633.78636386,0.00019726,2]
[346424934,1734955865498,-500.0,0.00019726,2]
[346424935,1734955865510,-769.77,0.00019726,2]
[346424936,1734955865521,-500.0,0.00019726,2]
[346424937,1734955865532,-500.0,0.00019726,2]
[346424938,1734955865542,-500.0,0.00019726,2]
[346424939,1734955865556,-500.0,0.00019726,2]
[346424940,1734955865571,-500.0,0.00019726,2]
[346424941,1734955865584,-500.0,0.00019726,2]
[346424942,1734955865602,-1211.53,0.00019726,2]
[346424943,1734955865612,-500.0,0.00019726,2]
[346424944,1734955865622,-500.0,0.00019726,2]
[346424945,1734955865632,-500.0,0.00019726,2]
[346424946,1734955865642,-500.0,0.00019726,2]
[346424947,1734955865651,-2746.64,0.00019726,2]
[346424948,1734955865661,-500.0,0.00019726,2]
[346424949,1734955865671,-500.0,0.00019726,2]
[346424950,1734955865681,-500.0,0.00019726,2]
[346424951,1734955865691,-500.0,0.00019726,2]
[346424952,1734955865700,-525.89274728,0.00019726,2]
[346424953,1734955865712,-500.0,0.00019726,2]
[346424954,1734955865723,-500.0,0.00019726,2]
[346424955,1734955865733,-1064.85,0.00019726,2]
[346424956,1734955865743,-500.0,0.00019726,2]
[346424957,1734955865753,-1901.17,0.00019726,2]
[346424958,1734955865764,-1130.26,0.00019726,2]
[346424959,1734955865773,-500.0,0.00019726,2]
[346424960,1734955865784,-500.0,0.00019726,2]
[346424961,1734955865793,-837.89,0.00019726,2]
[346424962,1734955865804,-500.0,0.00019726,2]
[346424963,1734955865814,-1676.34,0.00019726,2]
[346424964,1734955865825,-500.0,0.00019726,2]
[346424965,1734955865835,-600.1184008,0.00019726,2]
[346424966,1734955865844,-500.0,0.00019726,2]
[346424967,1734955865854,-500.0,0.00019726,2]
[346424968,1734955865864,-551.06,0.00019726,2]
[346424969,1734955865873,-500.0,0.00019726,2]
[346424970,1734955865883,-500.0,0.00019726,2]
[346424971,1734955865892,-500.0,0.00019726,2]
[346424972,1734955865902,-500.0,0.00019726,2]
[346424973,1734955865912,-500.0,0.00019726,2]
[346424974,1734955865921,-500.0,0.00019726,2]
[346424975,1734955865930,-1408.96,0.00019726,2]
[346424976,1734955865940,-500.0,0.00019726,2]
[346424977,1734955865950,-1961.87,0.00019726,2]
[346424978,1734955865961,-500.0,0.00019726,2]
[346424979,1734955865971,-500.0,0.00019726,2]
[346424980,1734955865981,-500.0,0.00019726,2]
[346424981,1734955865990,-500.0,0.00019726,2]
[346424982,1734955866000,-1377.95,0.00019726,2]
[346424983,1734955866009,-500.0,0.00019726,2]
[346424984,1734955866019,-1133.67,0.00019726,2]
[346424985,1734955866028,-500.0,0.00019726,2]
[346424986,1734955866038,-535.69,0.00019726,2]
[346424987,1734955866047,-500.0,0.00019726,2]
[346424988,1734955866056,-1250.8,0.00019726,2]
[346424989,1734955866066,-500.0,0.00019726,2]
[346424990,1734955866075,-2291.39,0.00019726,2]
[346424991,1734955866084,-1557.71,0.00019726,2]
[346424992,1734955866094,-500.0,0.00019726,2]
[346424993,1734955866103,-500.0,0.00019726,2]
[346424994,1734955866113,-500.0,0.00019726,2]
[346424995,1734955866122,-500.0,0.00019726,2]
[346424996,1734955866131,-500.0,0.00019726,2]
[346424997,1734955866140,-500.0,0.00019726,2]
[346424998,1734955866150,-222.02881883,0.00019726,2]
[346424999,1734955866159,-500.0,0.00019726,2]
[346425000,1734955866168,-977.11,0.00019726,2]
[346425001,1734955866177,-1507.15,0.00019726,2]
[346425002,1734955866187,-1266.97,0.00019726,2]
[346425003,1734955866196,-500.0,0.00019726,2]
[346425004,1734955866205,-500.0,0.00019726,2]
[346425005,1734955866217,-503.1740063,0.00019726,2]
[346425006,1734955866226,-500.0,0.00019726,2]
[346425007,1734955866235,-500.0,0.00019726,2]
[346425008,1734955866244,-500.0,0.00019726,2]
[346425009,1734955866253,-961.94,0.00019726,2]
[346425010,1734955866262,-1970.11,0.00019726,2]
[346425011,1734955866271,-1545.55,0.00019726,2]
[346425012,1734955866280,-500.0,0.00019726,2]
[346425013,1734955866289,-500.0,0.00019726,2]
[346425014,1734955866299,-1177.16,0.00019726,2]
[346425015,1734955866308,-500.0,0.00019726,2]
[346425016,1734955866319,-883.32,0.00019726,2]
[346425017,1734955866328,-500.0,0.00019726,2]
[346425018,1734955866337,-500.0,0.00019726,2]
[346425019,1734955866346,-500.0,0.00019726,2]
[346425020,1734955866356,-500.0,0.00019726,2]
[346425021,1734955866365,-556.37,0.00019726,2]
[346425022,1734955866375,-500.0,0.00019726,2]
[346425023,1734955866385,-1358.45,0.00019726,2]
[346425024,1734955866394,-500.0,0.00019726,2]
[346425025,1734955866404,-500.0,0.00019726,2]
[346425026,1734955866413,-500.0,0.00019726,2]
[346425027,1734955866423,-500.0,0.00019726,2]
[346425028,1734955866432,-2155.72,0.00019726,2]
[346425029,1734955866442,-500.0,0.00019726,2]
[346425030,1734955866451,-500.0,0.00019726,2]
[346425031,1734955866462,-500.0,0.00019726,2]
[346425032,1734955866471,-500.0,0.00019726,2]
[346425033,1734955866481,-500.0,0.00019726,2]
[346425034,1734955866491,-500.0,0.00019726,2]
[346425035,1734955866500,-500.0,0.00019726,2]
[346425036,1734955866511,-1219.2,0.00019726,2]
[346425037,1734955866523,-500.0,0.00019726,2]
[346425038,1734955866532,-500.0,0.00019726,2]
[346425039,1734955866541,-500.0,0.00019726,2]
[346425040,1734955866551,-500.0,0.00019726,2]
[346425041,1734955866560,-1009.03,0.00019726,2]
[346425042,1734955866569,-1008.58,0.00019726,2]
[346425043,1734955866579,-639.25,0.00019726,2]
[346425044,1734955866588,-500.0,0.00019726,2]
[346425045,1734955866597,-500.0,0.00019726,2]
[346425046,1734955866606,-500.0,0.00019726,2]
[346425047,1734955866617,-718.54,0.00019726,2]
[346425048,1734955866626,-500.0,0.00019726,2]
[346425049,1734955866636,-1213.74,0.00019726,2]
[346425050,1734955866645,-3289.27,0.00019726,2]
[346425051,1734955866655,-500.0,0.00019726,2]
[346425052,1734955866664,-1034.6,0.00019726,2]
[346425053,1734955866673,-500.0,0.00019726,2]
[346425054,1734955866682,-549.84,0.00019726,2]
[346425055,1734955866692,-500.0,0.00019726,2]
[346425056,1734955866701,-500.0,0.00019726,2]
[346425057,1734955866713,-500.0,0.00019726,2]
[346425058,1734955866723,-908.45,0.00019726,2]
[346425059,1734955866733,-594.39,0.00019726,2]
[346425060,1734955866742,-611.41,0.00019726,2]
[346425061,1734955866752,-1972.33,0.00019726,2]
[346425062,1734955866762,-500.0,0.00019726,2]
[346425063,1734955866772,-873.85,0.00019726,2]
[346425064,1734955866782,-500.0,0.00019726,2]
[346425065,1734955866791,-500.0,0.00019726,2]
[346425066,1734955866801,-500.0,0.00019726,2]
[346425067,1734955866810,-500.0,0.00019726,2]
[346425068,1734955866822,-500.0,0.00019726,2]
[346425069,1734955866832,-500.0,0.00019726,2]
[346425070,1734955866841,-500.0,0.00019726,2]
[346425071,1734955866851,-500.0,0.00019726,2]
[346425072,1734955866861,-500.0,0.00019726,2]
[346425073,1734955866870,-3257.8,0.00019726,2]
[346425074,1734955866880,-781.84,0.00019726,2]
[346425075,1734955866890,-2851.41,0.00019726,2]
[346425076,1734955866900,-500.0,0.00019726,2]
[346425077,1734955866909,-1161.38,0.00019726,2]
[346425078,1734955866920,-500.0,0.00019726,2]
[346425079,1734955866930,-500.0,0.00019726,2]
[346425080,1734955866940,-500.0,0.00019726,2]
[346425081,1734955866950,-500.0,0.00019726,2]
[346425082,1734955866961,-500.0,0.00019726,2]
[346425083,1734955866971,-1057.92,0.00019726,2]
[346425084,1734955866981,-2281.63,0.00019726,2]
[346425085,1734955866990,-500.0,0.00019726,2]
[346425086,1734955866999,-500.0,0.00019726,2]
[346425087,1734955867009,-500.0,0.00019726,2]
[346425088,1734955867018,-500.0,0.00019726,2]
[346425089,1734955867027,-500.0,0.00019726,2]
[346425090,1734955867037,-500.0,0.00019726,2]
[346425091,1734955867047,-941.02,0.00019726,2]
[346425092,1734955867056,-500.0,0.00019726,2]
[346425093,1734955867065,-500.0,0.00019726,2]
[346425094,1734955867074,-723.21,0.00019726,2]
[346425095,1734955867084,-500.0,0.00019726,2]
[346425096,1734955867094,-719.34,0.00019726,2]
[346425097,1734955867103,-500.0,0.00019726,2]
[346425098,1734955867112,-500.0,0.00019726,2]
[346425099,1734955867121,-500.0,0.00019726,2]
[346425100,1734955867131,-2094.75,0.00019726,2]
[346425101,1734955867140,-500.0,0.00019726,2]
[346425102,1734955867149,-695.7,0.00019726,2]
[346425103,1734955867158,-500.0,0.00019726,2]
[346425104,1734955867168,-1168.11,0.00019726,2]
[346425105,1734955867178,-568.3,0.00019726,2]
[346425106,1734955867187,-500.0,0.00019726,2]
[346425107,1734955867197,-569.9,0.00019726,2]
[346425108,1734955867206,-500.0,0.00019726,2]
[346425109,1734955867217,-2533.91,0.00019726,2]
[346425110,1734955867226,-663.9,0.00019726,2]
[346425111,1734955867236,-1631.86,0.00019726,2]
[346425112,1734955867245,-500.0,0.00019726,2]
[346425113,1734955867255,-3277.84,0.00019726,2]
[346425114,1734955867264,-500.0,0.00019726,2]
[346425115,1734955867274,-2013.83,0.00019726,2]
[346425116,1734955867283,-500.0,0.00019726,2]
[346425117,1734955867293,-617.83,0.00019726,2]
[346425118,1734955867302,-714.92,0.00019726,2]
[346425119,1734955867312,-1187.81,0.00019726,2]
[346425120,1734955867322,-500.0,0.00019726,2]
[346425121,1734955867438,-513.48,0.00019726,2]
[346425122,1734955867749,-500.0,0.00019726,2]
[346425123,1734955867759,-500.0,0.00019726,2]
[346425124,1734955867769,-758.81,0.00019726,2]
[346425125,1734955867778,-500.0,0.00019726,2]
[346425126,1734955867788,-500.0,0.00019726,2]
[346425127,1734955867798,-1091.82,0.00019726,2]
[346425128,1734955867807,-500.0,0.00019726,2]
[346425129,1734955867816,-1277.7,0.00019726,2]
[346425130,1734955867825,-500.0,0.00019726,2]
[346425131,1734955867834,-500.0,0.00019726,2]
[346425132,1734955867843,-500.0,0.00019726,2]
[346425133,1734955867853,-500.0,0.00019726,2]
[346425134,1734955867863,-500.0,0.00019726,2]
[346425135,1734955867873,-500.0,0.00019726,2]
[346425136,1734955867883,-2433.17,0.00019726,2]
[346425137,1734955867893,-1028.11,0.00019726,2]
[346425138,1734955867902,-500.0,0.00019726,2]